bitfinex/quotes_SOLUSD_20230701
["timestamp","ask_amount","ask_price","bid_price","bid_amount"]
[1688223736783,55.0,18.44,18.428,22.953]
[1688223737076,22.941,18.439,18.428,22.953]
[1688223737285,22.939,18.441,18.428,22.953]
[1688223738172,22.943,18.437,18.428,22.953]
[1688223738378,77.944,18.436,18.428,22.953]
[1688223738587,22.942,18.438,18.428,22.953]
[1688223738895,55.0,18.437,18.428,22.953]
[1688223739101,55.0,18.44,18.428,22.953]
[1688223739896,22.943,18.437,18.428,22.953]
[1688223740193,55.0,18.436,18.428,22.953]
[1688223741309,77.944,18.436,18.422,99.4753]
[1688223741492,77.944,18.436,18.423,20.0]
[1688223742306,77.944,18.436,18.427,22.955]
[1688223746019,55.0,18.436,18.427,22.955]
[1688223746203,55.0,18.437,18.427,22.955]
[1688223746404,77.943,18.437,18.427,22.955]
[1688223746811,77.943,18.437,18.425,22.956]
[1688223747218,185.715,18.437,18.42,22.963]
[1688223747426,20.0,18.436,18.413,154.6393]
[1688223747727,22.952,18.43,18.418,22.965]
[1688223748096,59.083,18.432,18.418,22.965]
[1688223748097,22.954,18.428,18.418,22.965]
[1688223748314,55.0,18.427,18.418,22.965]
[1688223748911,55.0,18.43,18.418,82.091]
[1688223749123,59.071,18.436,18.418,82.091]
[1688223749306,22.948,18.433,18.422,22.96]
[1688223749507,22.948,18.433,18.423,20.0]
[1688223750424,22.952,18.43,18.423,20.0]
[1688223750615,55.0,18.429,18.423,20.0]
[1688223751021,55.0,18.429,18.423,42.959]
[1688223753023,55.0,18.43,18.423,42.959]
[1688223755515,135.37504242,18.436,18.423,42.959]
[1688223755713,59.038,18.446,18.423,42.959]
[1688223755933,27.37554057,18.444,18.424,146.0404]
[1688223756117,20.0,18.443,18.43,189.852]
[1688223756430,20.0,18.445,18.43,189.852]
[1688223756611,42.933,18.445,18.43,189.852]
[1688223756808,21.720559,18.443,18.43,189.852]
[1688223757020,20.0,18.442,18.43,82.039]
[1688223757415,55.0,18.441,18.43,82.039]
[1688223758529,77.938,18.441,18.43,22.951]
[1688223762637,21.720559,18.443,18.43,106.509]
[1688223762814,59.03,18.449,18.43,106.509]
[1688223762815,22.932,18.446,18.431,20.0]
[1688223763021,22.932,18.446,18.435,22.944]
[1688223763232,22.93,18.448,18.435,22.944]
[1688223763927,54.18,18.459,18.432,92.528]
[1688223763928,59.018,18.449,18.446,22.931]
[1688223764129,22.917,18.458,18.446,22.931]
[1688223765532,55.0,18.457,18.446,22.931]
[1688223765737,22.92,18.456,18.446,22.931]
[1688223765937,55.0,18.455,18.446,22.931]
[1688223767921,77.92,18.455,18.446,22.931]
[1688223768117,77.92,18.455,18.434,107.785]
[1688223768322,77.92,18.455,18.441,22.937]
[1688223768323,22.927,18.45,18.441,22.937]
[1688223768636,55.0,18.449,18.441,22.937]
[1688223769248,77.928,18.449,18.441,22.937]
[1688223769537,77.928,18.449,18.439,22.939]
[1688223769935,137.0,18.449,18.439,22.939]
[1688223770822,55.0,18.449,18.439,22.939]
[1688223771025,55.0,18.45,18.439,22.939]
[1688223771743,77.925,18.451,18.439,22.939]
[1688223771944,132.925,18.451,18.439,22.939]
[1688223772350,132.925,18.451,18.436,22.943]
[1688223776525,132.925,18.451,18.431,84.0393]
[1688223776725,132.925,18.451,18.436,22.943]
[1688223776726,22.933,18.445,18.436,22.943]
[1688223776947,59.028,18.449,18.436,22.943]
[1688223776948,77.935,18.444,18.436,22.943]
[1688223777141,55.0,18.444,18.436,22.943]
[1688223777443,55.0,18.451,18.436,22.943]
[1688223777444,55.0,18.445,18.436,22.943]
[1688223778159,55.0,18.451,18.436,22.943]
[1688223778443,27.35476373,18.455,18.436,22.943]
[1688223779025,47.354764,18.454,18.436,22.943]
[1688223779444,55.0,18.453,18.436,22.943]
[1688223779644,20.0,18.452,18.436,22.943]
[1688223779845,55.0,18.451,18.436,22.943]
[1688223780049,77.926,18.451,18.436,22.943]
[1688223795854,24.52,18.45,18.436,22.943]
[1688223796056,22.932,18.446,18.436,22.943]
[1688223796350,55.0,18.445,18.436,22.943]
[1688223796553,46.63723886,18.452,18.436,22.943]
[1688223797851,22.927,18.45,18.436,22.943]
[1688223798051,77.928,18.449,18.436,22.943]
[1688223802560,77.928,18.449,18.431,84.0393]
[1688223802561,136.955,18.449,18.431,84.0393]
[1688223802858,136.955,18.449,18.436,22.943]
[1688223809453,164.39468453,18.449,18.436,22.943]
[1688223809871,105.36768453,18.449,18.436,22.943]
[1688223810256,27.43968453,18.449,18.436,22.943]
[1688223810769,22.927,18.45,18.436,22.943]
[1688223811666,47.447,18.45,18.436,22.943]
[1688223812448,22.932,18.446,18.436,22.943]
[1688223812652,22.935,18.443,18.436,22.943]
[1688223813065,55.0,18.442,18.436,22.943]
[1688223814258,55.0,18.443,18.436,22.943]
[1688223814452,22.943,18.444,18.436,22.943]
[1688223814665,22.928,18.449,18.436,82.012]
[1688223815978,77.93,18.448,18.436,82.012]
[1688223817969,77.93,18.448,18.436,22.943]
[1688223826186,77.93,18.448,18.433,59.078]
[1688223826187,136.96,18.448,18.42,122.59]
[1688223826378,20.0,18.447,18.428,22.953]
[1688223826687,22.937,18.442,18.428,82.047]
[1688223826866,20.0,18.441,18.428,82.047]
[1688223827068,22.94,18.439,18.428,82.047]
[1688223827272,55.0,18.438,18.428,82.047]
[1688223827667,77.942,18.438,18.428,22.953]
[1688223830583,77.942,18.438,18.422,76.7834]
[1688223831683,77.942,18.438,18.421,20.0]
[1688223831884,77.942,18.438,18.427,22.955]
[1688223833182,77.942,18.438,18.421,113.6056]
[1688223833775,77.942,18.438,18.421,93.6056]
[1688223833985,77.942,18.438,18.422,20.0]
[1688223834284,77.942,18.438,18.421,20.0]
[1688223834489,55.0,18.437,18.421,20.0]
[1688223834791,22.948,18.433,18.425,22.957]
[1688223834970,55.0,18.432,18.425,22.957]
[1688223835371,77.949,18.432,18.425,22.957]
[1688223835590,77.949,18.432,18.423,22.959]
[1688223835973,22.953,18.429,18.421,22.962]
[1688223836384,55.0,18.428,18.421,22.962]
[1688223836783,77.954,18.428,18.419,22.964]
[1688223836977,77.954,18.428,18.42,22.963]
[1688223838087,77.954,18.428,18.411,99.2556]
[1688223838283,77.954,18.428,18.418,22.965]
[1688223840685,55.0,18.428,18.418,22.965]
[1688223840993,77.953,18.429,18.418,22.965]
[1688223843691,77.953,18.429,18.412,59.144]
[1688223844901,77.953,18.429,18.417,22.967]
[1688223847103,77.953,18.429,18.412,59.144]
[1688223847403,77.953,18.429,18.414,22.97]
[1688223850305,22.953,18.429,18.414,22.97]
[1688223851600,59.13,18.43,18.414,22.97]
[1688223851601,77.955,18.428,18.414,22.97]
[1688223853987,77.955,18.428,18.403,107.965]
[1688223854189,24.52,18.42,18.408,22.977]
[1688223854391,22.968,18.417,18.406,22.98]
[1688223854596,55.0,18.416,18.406,22.98]
[1688223854800,22.971,18.415,18.406,22.98]
[1688223855004,55.0,18.414,18.406,22.98]
[1688223855895,77.971,18.414,18.406,22.98]
[1688223856103,77.971,18.414,18.404,22.983]
[1688223856992,20.0,18.413,18.402,22.985]
[1688223857192,22.977,18.41,18.399,22.989]
[1688223857395,55.0,18.409,18.399,22.989]
[1688223857605,22.98,18.407,18.399,22.989]
[1688223857892,55.0,18.406,18.399,22.989]
[1688223858100,22.979,18.408,18.399,22.989]
[1688223858298,22.981,18.406,18.399,22.989]
[1688223858500,55.0,18.405,18.399,22.989]
[1688223858893,55.0,18.405,18.394,59.203]
[1688223859097,77.982,18.405,18.397,22.991]
[1688223859814,77.982,18.405,18.395,22.994]
[1688223860293,77.982,18.405,18.393,22.996]
[1688223860499,155.964,18.405,18.393,22.996]
[1688223860701,77.982,18.405,18.393,22.996]
[1688223861207,22.989,18.401,18.39,23.0]
[1688223861395,22.989,18.401,18.389,23.002]
[1688223861595,22.993,18.397,18.387,110.4443]
[1688223861790,22.995,18.395,18.387,23.004]
[1688223861995,55.0,18.394,18.387,23.004]
[1688223862805,55.0,18.394,18.385,23.006]
[1688223862806,77.997,18.394,18.385,23.006]
[1688223863597,22.997,18.394,18.385,23.006]
[1688223863999,55.0,18.393,18.385,23.006]
[1688223864704,77.998,18.393,18.385,23.006]
[1688223865612,77.998,18.393,18.383,23.281]
[1688223865804,77.998,18.393,18.383,0.272]
[1688223866199,77.998,18.393,18.384,23.008]
[1688223866892,83.715,18.396,18.384,23.008]
[1688223867096,59.185,18.4,18.384,23.008]
[1688223867920,22.994,18.396,18.384,23.008]
[1688223868303,55.0,18.395,18.384,23.008]
[1688223868500,77.995,18.395,18.384,23.008]
[1688223869707,55.0,18.395,18.384,23.008]
[1688223870805,77.995,18.395,18.384,23.008]
[1688223872900,111.58868187,18.4,18.384,23.008]
[1688223872901,22.993,18.397,18.384,23.008]
[1688223873099,22.991,18.399,18.384,23.008]
[1688223873620,23.008,18.398,18.384,23.008]
[1688223874406,24.65,18.41,18.39,24.53]
[1688223874606,24.65,18.41,18.394,22.996]
[1688223874800,22.983,18.405,18.394,22.996]
[1688223875006,20.0,18.404,18.394,22.996]
[1688223875214,22.987,18.402,18.394,22.996]
[1688223875521,20.0,18.401,18.394,22.996]
[1688223875695,42.988,18.401,18.394,22.996]
[1688223875901,24.53,18.405,18.383,0.272]
[1688223876117,86.08715744,18.41,18.394,22.995]
[1688223876617,21.761756,18.407,18.394,22.995]
[1688223876819,44.741756,18.407,18.394,22.995]
[1688223877900,22.986,18.403,18.394,22.995]
[1688223878101,77.987,18.402,18.394,22.995]
[1688223878716,77.987,18.402,18.392,22.998]
[1688223879022,20.0,18.401,18.392,22.998]
[1688223879215,77.989,18.4,18.392,22.998]
[1688223879720,55.0,18.4,18.392,22.998]
[1688223880020,77.99,18.4,18.392,22.998]
[1688223881013,77.99,18.4,18.39,23.0]
[1688223881206,129.713756,18.407,18.39,23.0]
[1688223881504,22.985,18.403,18.39,23.0]
[1688223881712,20.0,18.402,18.39,23.0]
[1688223882320,42.986,18.402,18.39,23.0]
[1688223882705,55.0,18.401,18.39,23.0]
[1688223883907,77.988,18.401,18.39,23.0]
[1688223885009,49.08335483,18.407,18.391,20.0]
[1688223885316,22.983,18.405,18.395,22.994]
[1688223886223,82.151,18.405,18.392,22.997]
[1688223886422,75.0,18.404,18.392,22.997]
[1688223886716,22.988,18.401,18.392,22.997]
[1688223886915,77.99,18.4,18.392,22.997]
[1688223887116,22.99,18.4,18.392,22.997]
[1688223887316,77.99,18.399,18.392,22.997]
[1688223887517,55.0,18.398,18.392,22.997]
[1688223887910,77.991,18.398,18.39,23.0]
[1688223891005,77.991,18.398,18.384,93.8681]
[1688223891201,22.987,18.402,18.39,23.001]
[1688223891413,20.0,18.401,18.39,23.001]
[1688223891610,20.0,18.404,18.39,23.001]
[1688223891821,46.6126533,18.404,18.39,23.001]
[1688223892010,20.0,18.404,18.39,23.001]
[1688223892316,20.0,18.406,18.39,23.001]
[1688223892914,22.985,18.404,18.39,23.001]
[1688223893222,20.0,18.403,18.39,23.001]
[1688223893632,42.985,18.403,18.39,23.001]
[1688223893810,55.0,18.402,18.39,23.001]
[1688223894012,20.0,18.401,18.39,23.001]
[1688223894216,55.0,18.4,18.39,23.001]
[1688223894421,49.08335483,18.407,18.391,20.0]
[1688223894628,49.08335483,18.407,18.395,22.994]
[1688223894629,21.761756,18.407,18.395,22.994]
[1688223894827,167.034,18.416,18.395,22.994]
[1688223895013,167.034,18.416,18.396,7.58401145]
[1688223895213,167.034,18.416,18.402,22.986]
[1688223895214,22.975,18.411,18.402,22.986]
[1688223895922,55.0,18.41,18.397,59.191]
[1688223896123,77.977,18.41,18.402,22.986]
[1688223900831,77.977,18.41,18.4,22.988]
[1688223902228,55.0,18.41,18.4,22.988]
[1688223902429,77.975,18.411,18.4,22.988]
[1688223905732,55.0,18.411,18.4,82.172]
[1688223906034,22.973,18.413,18.4,106.702]
[1688223906331,20.0,18.412,18.4,106.702]
[1688223907138,42.974,18.412,18.4,106.702]
[1688223908038,77.975,18.411,18.4,106.702]
[1688223908235,77.975,18.411,18.4,82.172]
[1688223908435,55.0,18.411,18.4,82.172]
[1688223910237,77.975,18.411,18.4,82.172]
[1688223911737,77.975,18.411,18.4,22.988]
[1688223911939,77.975,18.411,18.398,22.99]
[1688223912138,77.975,18.411,18.395,22.994]
[1688223912139,24.53,18.41,18.395,22.994]
[1688223912343,22.982,18.406,18.393,22.997]
[1688223912547,55.0,18.405,18.391,20.0]
[1688223912728,22.986,18.402,18.394,22.996]
[1688223912928,55.0,18.401,18.394,22.996]
[1688223915847,55.0,18.402,18.394,22.996]
[1688223916031,55.0,18.403,18.394,22.996]
[1688223919641,24.53,18.41,18.394,22.996]
[1688223919847,28.23870998,18.412,18.394,22.996]
[1688223919848,28.23870998,18.412,18.395,6.1371291]
[1688223920029,28.23870998,18.412,18.4,190.161]
[1688223920232,28.23870998,18.412,18.4,214.441]
[1688223920442,20.0,18.412,18.4,214.441]
[1688223920641,42.97,18.415,18.4,214.441]
[1688223920845,28.23871,18.412,18.4,214.441]
[1688223921146,20.0,18.411,18.4,214.441]
[1688223921742,20.0,18.411,18.4,190.161]
[1688223922443,55.0,18.41,18.4,190.161]
[1688223922947,55.0,18.41,18.4,82.173]
[1688223924843,20.0,18.411,18.4,82.173]
[1688223925047,55.0,18.41,18.4,82.173]
[1688223925227,77.976,18.41,18.4,22.989]
[1688223925955,132.976,18.41,18.4,22.989]
[1688223927936,55.0,18.41,18.4,22.989]
[1688223928143,97.2073,18.416,18.4,22.989]
[1688223928446,120.1773,18.416,18.401,20.0]
[1688223928655,22.97,18.416,18.405,22.982]
[1688223928953,82.157,18.416,18.405,22.982]
[1688223929751,55.0,18.415,18.405,22.982]
[1688223930140,77.971,18.415,18.405,22.982]
[1688223932333,55.0,18.415,18.405,22.982]
[1688223933249,55.0,18.416,18.405,82.15]
[1688223935234,77.969,18.416,18.405,82.15]
[1688223935545,77.969,18.416,18.405,22.982]
[1688223939050,77.969,18.416,18.399,107.993]
[1688223939051,77.969,18.416,18.403,22.984]
[1688223939251,22.974,18.412,18.402,22.985]
[1688223939560,22.977,18.41,18.402,22.985]
[1688223939858,55.0,18.409,18.402,22.985]
[1688223940760,77.977,18.409,18.402,22.985]
[1688223942856,77.977,18.409,18.4,22.988]
[1688223943050,77.977,18.409,18.399,22.989]
[1688223943646,22.977,18.409,18.399,22.989]
[1688223944053,55.0,18.408,18.399,22.989]
[1688223944250,22.981,18.407,18.399,22.989]
[1688223944557,55.0,18.406,18.393,59.206]
[1688223944760,22.984,18.405,18.396,22.993]
[1688223945066,77.984,18.404,18.396,22.993]
[1688223946063,77.984,18.404,18.393,59.206]
[1688223946064,77.984,18.404,18.393,22.997]
[1688223946245,20.0,18.403,18.392,22.998]
[1688223946444,22.989,18.4,18.392,22.998]
[1688223946658,55.0,18.399,18.392,22.998]
[1688223946966,77.99,18.399,18.39,23.0]
[1688223949340,77.99,18.399,18.388,23.003]
[1688223962472,77.99,18.399,18.384,95.2088]
[1688223962773,77.99,18.399,18.386,23.005]
[1688223963455,77.99,18.399,18.383,0.272]
[1688223963659,98.344,18.398,18.383,0.272]
[1688223963957,22.997,18.394,18.383,0.272]
[1688223964174,23.001,18.391,18.383,23.282]
[1688223964571,55.0,18.39,18.383,23.282]
[1688223965370,55.0,18.391,18.383,23.282]
[1688223965570,78.001,18.391,18.383,23.282]
[1688223965872,78.001,18.391,18.383,0.272]
[1688223966670,23.282,18.393,18.383,23.281]
[1688223966868,157.532,18.399,18.383,23.281]
[1688223967066,27.46318997,18.395,18.383,23.281]
[1688223967274,157.532,18.399,18.383,23.281]
[1688223967770,22.996,18.395,18.383,23.281]
[1688223967963,55.0,18.394,18.383,23.281]
[1688223968163,22.998,18.393,18.383,23.281]
[1688223968470,55.0,18.392,18.383,23.281]
[1688223969271,77.999,18.392,18.383,23.281]
[1688223970369,55.0,18.392,18.383,23.281]
[1688223971766,55.0,18.393,18.383,23.281]
[1688223972374,55.0,18.394,18.383,23.281]
[1688223972575,77.996,18.394,18.383,23.281]
[1688223975166,55.0,18.394,18.383,82.02]
[1688223976171,209.9756276,18.399,18.383,82.02]
[1688223976378,22.994,18.396,18.383,82.02]
[1688223976876,22.992,18.398,18.383,82.02]
[1688223977469,55.0,18.397,18.383,82.02]
[1688223977776,77.994,18.397,18.383,82.02]
[1688223980185,77.994,18.397,18.383,22.781]
[1688223981680,77.994,18.397,18.383,22.281]
[1688223984665,134.6226276,18.399,18.383,22.281]
[1688223984866,111.6316276,18.399,18.383,22.281]
[1688223985280,134.6216276,18.399,18.383,22.281]
[1688223985985,22.997,18.394,18.383,22.281]
[1688223986172,55.0,18.393,18.383,22.281]
[1688223991576,22.993,18.397,18.383,22.281]
[1688223991775,111.6316276,18.399,18.383,22.281]
[1688223992185,134.6216276,18.399,18.383,22.281]
[1688223993390,106.767,18.399,18.383,22.281]
[1688223993787,22.988,18.401,18.383,22.281]
[1688223993991,47.58128491,18.407,18.39,24.33]
[1688223994207,98.04,18.42,18.39,24.33]
[1688223994208,27.45966417,18.409,18.395,22.995]
[1688223994396,59.144,18.413,18.395,22.995]
[1688223994593,22.978,18.409,18.395,22.995]
[1688223995096,45.956,18.409,18.395,22.995]
[1688223995597,22.984,18.405,18.395,22.995]
[1688223995804,22.985,18.403,18.395,17.995]
[1688223996091,55.0,18.402,18.395,17.995]
[1688223996295,77.986,18.402,18.395,17.995]
[1688223996690,77.986,18.402,18.393,22.996]
[1688223998403,55.0,18.402,18.393,22.996]
[1688223998695,22.982,18.406,18.393,22.996]
[1688224000002,55.0,18.405,18.393,22.996]
[1688224000299,22.985,18.404,18.393,22.996]
[1688224000498,55.0,18.403,18.393,22.996]
[1688224002506,45.955,18.409,18.393,22.996]
[1688224003294,45.955,18.409,18.393,17.996]
[1688224004086,55.0,18.408,18.393,17.996]
[1688224004396,77.979,18.408,18.393,17.996]
[1688224008406,77.979,18.408,18.387,108.063]
[1688224008407,82.168,18.401,18.387,23.004]
[1688224008604,22.994,18.397,18.387,23.004]
[1688224008991,22.995,18.395,18.387,23.004]
[1688224009213,77.996,18.394,18.381,59.245]
[1688224009398,22.996,18.394,18.382,20.0]
[1688224009600,55.0,18.393,18.382,20.0]
[1688224010816,55.0,18.393,18.386,23.005]
[1688224015998,59.169,18.405,18.386,82.234]
[1688224016198,22.99,18.399,18.387,4.91443319]
[1688224016410,22.99,18.399,18.39,23.0]
[1688224017300,45.98,18.399,18.39,23.0]
[1688224017908,55.0,18.398,18.39,23.0]
[1688224018220,77.991,18.398,18.39,23.0]
[1688224020715,77.991,18.398,18.386,23.005]
[1688224021112,86.22970998,18.398,18.386,23.005]
[1688224022502,77.991,18.398,18.386,23.005]
[1688224023714,22.991,18.398,18.386,23.005]
[1688224024811,22.991,18.398,18.386,18.005]
[1688224025012,55.0,18.397,18.386,18.005]
[1688224025423,77.993,18.397,18.386,18.005]
[1688224026308,22.991,18.398,18.386,18.005]
[1688224027917,55.0,18.397,18.386,18.005]
[1688224028124,22.996,18.394,18.386,18.005]
[1688224028314,55.0,18.393,18.386,18.005]
[1688224030507,22.99,18.399,18.386,18.005]
[1688224031528,22.99,18.399,18.386,23.005]
[1688224031917,22.99,18.399,18.387,4.26958776]
[1688224032117,22.99,18.399,18.39,23.0]
[1688224033536,55.0,18.398,18.39,23.0]
[1688224034414,24.38,18.41,18.394,22.995]
[1688224034725,97.0233,18.418,18.395,5.4153415]
[1688224034927,22.975,18.412,18.401,22.986]
[1688224035410,20.0,18.411,18.401,22.986]
[1688224035611,22.977,18.41,18.401,22.986]
[1688224036710,22.977,18.41,18.399,22.989]
[1688224037534,22.979,18.408,18.399,22.989]
[1688224037717,55.0,18.407,18.399,22.989]
[1688224038523,55.0,18.409,18.399,22.989]
[1688224038524,55.0,18.408,18.399,22.989]
[1688224039031,22.967,18.418,18.4,99.28]
[1688224039333,22.967,18.418,18.405,22.982]
[1688224039511,49.992805,18.418,18.405,22.982]
[1688224039832,27.025805,18.418,18.405,22.982]
[1688224041039,92.5507,18.423,18.405,22.982]
[1688224041233,22.964,18.421,18.405,22.982]
[1688224041532,22.969,18.416,18.405,22.982]
[1688224041739,22.967,18.418,18.405,22.982]
[1688224041921,82.136,18.42,18.405,22.982]
[1688224042117,59.171,18.42,18.405,22.982]
[1688224042320,22.961,18.422,18.405,22.982]
[1688224042635,42.963,18.421,18.405,22.982]
[1688224043537,55.0,18.42,18.405,22.982]
[1688224044635,102.495,18.42,18.405,22.982]
[1688224046322,157.495,18.42,18.405,22.982]
[1688224050337,74.18,18.419,18.396,59.195]
[1688224050534,74.18,18.419,18.399,22.989]
[1688224050535,82.117,18.413,18.399,22.989]
[1688224050739,75.0,18.412,18.399,22.989]
[1688224051043,22.979,18.409,18.399,22.989]
[1688224051225,55.0,18.408,18.399,22.989]
[1688224051547,22.98,18.407,18.399,22.989]
[1688224051749,55.0,18.406,18.399,22.989]
[1688224052227,20.0,18.412,18.399,22.989]
[1688224052434,55.0,18.41,18.399,22.989]
[1688224052639,55.0,18.409,18.399,22.989]
[1688224052847,77.975,18.411,18.399,22.989]
[1688224056549,137.163,18.411,18.399,22.989]
[1688224058544,24.53,18.41,18.391,203.829]
[1688224058742,22.983,18.405,18.395,22.994]
[1688224059239,55.0,18.404,18.395,22.994]
[1688224059441,22.986,18.403,18.395,22.994]
[1688224059748,22.989,18.4,18.392,22.998]
[1688224059934,59.166,18.406,18.393,42.997]
[1688224060134,55.0,18.399,18.393,42.997]
[1688224060654,22.983,18.405,18.393,42.997]
[1688224061147,55.0,18.404,18.393,42.997]
[1688224061833,55.0,18.405,18.393,42.997]
[1688224062036,26.74687127,18.413,18.394,67.20251816]
[1688224062247,94.7503,18.418,18.4,24.53]
[1688224062456,398.5,18.427,18.401,20.0]
[1688224062759,47.581285,18.418,18.41,24.53]
[1688224063052,22.955,18.427,18.412,82.117]
[1688224063251,22.953,18.429,18.417,22.967]
[1688224063455,59.066,18.437,18.417,22.967]
[1688224063635,59.088,18.428,18.417,22.967]
[1688224063835,22.954,18.428,18.417,22.967]
[1688224064840,55.0,18.427,18.417,22.967]
[1688224065143,22.957,18.426,18.417,22.967]
[1688224065450,55.0,18.425,18.417,22.967]
[1688224066144,77.958,18.425,18.417,22.967]
[1688224066453,22.965,18.419,18.41,22.975]
[1688224066835,77.966,18.418,18.41,22.975]
[1688224067652,137.092,18.418,18.402,154.668]
[1688224067850,137.092,18.418,18.403,20.0]
[1688224067851,196.259,18.418,18.403,20.0]
[1688224068551,196.259,18.418,18.403,22.984]
[1688224069841,20.0,18.417,18.391,94.7046]
[1688224070039,22.977,18.41,18.395,59.197]
[1688224070449,55.0,18.409,18.393,108.025]
[1688224070637,22.983,18.405,18.394,19.60831548]
[1688224070844,55.0,18.404,18.395,22.994]
[1688224071039,22.985,18.403,18.395,22.994]
[1688224071242,55.0,18.402,18.395,22.994]
[1688224071553,77.986,18.402,18.395,22.994]
[1688224077562,77.986,18.402,18.386,59.229]
[1688224077753,77.986,18.402,18.388,23.004]
[1688224077754,20.0,18.401,18.388,23.004]
[1688224077959,22.992,18.398,18.388,23.004]
[1688224078262,77.993,18.397,18.388,23.004]
[1688224078460,22.993,18.397,18.388,23.004]
[1688224078849,55.0,18.396,18.388,23.004]
[1688224082052,77.994,18.396,18.388,23.004]
[1688224082751,77.994,18.396,18.387,23.004]
[1688224083444,55.0,18.396,18.387,23.004]
[1688224083648,55.0,18.399,18.387,23.004]
[1688224083848,22.987,18.402,18.388,7.35102596]
[1688224084150,22.987,18.402,18.392,22.998]
[1688224084351,20.0,18.401,18.392,22.998]
[1688224084865,42.988,18.401,18.392,22.998]
[1688224085064,55.0,18.4,18.386,59.229]
[1688224085265,22.991,18.398,18.39,23.0]
[1688224085566,77.993,18.397,18.39,23.0]
[1688224085761,55.0,18.397,18.39,23.0]
[1688224085967,55.0,18.398,18.39,23.0]
[1688224086162,55.0,18.399,18.39,23.0]
[1688224086753,77.99,18.399,18.39,23.0]
[1688224087164,55.0,18.399,18.39,23.0]
[1688224087349,55.0,18.4,18.39,23.0]
[1688224087754,59.22,18.402,18.39,47.58]